bitfinex/quotes_SOLUSD_20250421
["timestamp","ask_amount","ask_price","bid_price","bid_amount"]
[1745197276617,0.063,141.39,141.38,125.89837215]
[1745197277295,0.063,141.42,141.41,26.0]
[1745197277496,0.063,141.45,141.44,44.64964886]
[1745197277810,0.063,141.45,141.44,405.06549544]
[1745197278708,0.063,141.48,141.47,44.64964886]
[1745197278920,0.063,141.48,141.47,168.67837215]
[1745197279087,0.063,141.53,141.52,37.39757215]
[1745197279294,0.063,141.53,141.51,26.0]
[1745197279512,0.063,141.53,141.52,16.78]
[1745197281204,18.81092329,141.53,141.52,16.78]
[1745197281386,0.063,141.53,141.52,16.78]
[1745197282603,18.81092329,141.53,141.47,99.44792329]
[1745197282904,18.74792329,141.51,141.48,16.78]
[1745197283307,0.063,141.53,141.48,35.52792329]
[1745197283504,18.81092329,141.53,141.48,16.78]
[1745197283812,18.74792329,141.52,141.48,16.78]
[1745197284310,18.74792329,141.51,141.48,16.78]
[1745197284499,18.74792329,141.52,141.48,16.78]
[1745197284910,18.81092329,141.53,141.48,35.52792329]
[1745197285104,18.81092329,141.53,141.48,16.78]
[1745197285291,18.74792329,141.52,141.48,16.78]
[1745197285794,18.81092329,141.53,141.48,16.78]
[1745197286188,18.81092329,141.53,141.49,18.74792329]
[1745197286189,0.063,141.53,141.49,18.74792329]
[1745197286389,0.063,141.53,141.5,18.74792329]
[1745197286592,0.063,141.53,141.51,18.74792329]
[1745197288717,0.063,141.53,141.52,37.39757215]
[1745197290415,0.063,141.53,141.52,18.64964886]
[1745197290600,0.063,141.53,141.52,26.0]
[1745197290802,0.063,141.53,141.52,44.74792329]
[1745197291296,0.063,141.53,141.52,80.15757215]
[1745197292110,0.063,141.53,141.52,42.76]
[1745197292496,18.81092329,141.53,141.52,16.76]
[1745197293214,0.063,141.53,141.52,16.76]
[1745197293620,18.81092329,141.53,141.52,16.76]
[1745197294312,63.55884658,141.53,141.52,16.76]
[1745197294820,44.81092329,141.53,141.52,16.76]
[1745197294999,26.063,141.53,141.52,16.76]
[1745197295199,0.063,141.53,141.52,16.76]
[1745197295910,0.063,141.53,141.52,54.15757215]
[1745197297626,0.063,141.53,141.52,35.40964886]
[1745197298014,0.063,141.53,141.52,54.15757215]
[1745197299414,0.063,141.53,141.52,63.02637538]
[1745197300502,0.063,141.53,141.52,143.72637538]
[1745197301318,0.063,141.53,141.52,171.3431019]
[1745197301705,0.063,141.53,141.52,143.72637538]
[1745197302415,0.063,141.53,141.52,171.3431019]
[1745197302608,0.063,141.53,141.52,143.72637538]
[1745197303834,0.063,141.53,141.52,116.10964886]
[1745197304039,0.063,141.53,141.52,97.46]
[1745197304737,27.67972652,141.53,141.52,16.76]
[1745197305101,0.063,141.53,141.52,16.76]
[1745197305299,0.063,141.53,141.52,63.02637538]
[1745197305528,0.063,141.53,141.52,16.76]
[1745197306230,0.063,141.53,141.52,16.74]
[1745197306731,0.063,141.53,141.52,44.35672652]
[1745197307104,0.063,141.53,141.52,16.74]
[1745197307306,0.063,141.53,141.52,63.00637538]
[1745197307502,0.063,141.53,141.52,35.38964886]
[1745197307707,0.063,141.53,141.52,63.00637538]
[1745197308409,0.063,141.53,141.52,35.38964886]
[1745197308619,0.063,141.53,141.52,304.96637538]
[1745197308814,0.063,141.53,141.52,258.7]
[1745197310738,27.67972652,141.53,141.52,258.7]
[1745197311541,0.063,141.53,141.52,258.7]
[1745197313227,0.063,141.53,141.52,304.96637538]
[1745197313532,0.063,141.53,141.52,411.66637538]
[1745197315737,0.063,141.53,141.52,413.2831019]
[1745197315929,0.063,141.53,141.52,385.66637538]
[1745197316638,0.063,141.53,141.52,358.04964886]
[1745197317335,0.063,141.53,141.52,385.66637538]
[1745197318632,0.063,141.53,141.52,339.4]
[1745197319239,0.063,141.53,141.52,258.7]
[1745197321214,18.76751457,141.53,141.52,241.96]
[1745197321411,18.76751457,141.53,141.52,258.7]
[1745197321722,0.063,141.53,141.52,258.7]
[1745197321922,18.76751457,141.53,141.52,258.7]
[1745197322136,0.063,141.53,141.52,258.7]
[1745197322736,18.76751457,141.53,141.52,258.7]
[1745197322934,0.063,141.53,141.52,258.7]
[1745197323521,18.76751457,141.53,141.52,258.7]
[1745197324537,0.063,141.53,141.52,258.7]
[1745197324739,18.76751457,141.53,141.52,258.7]
[1745197326720,20.29781457,141.53,141.52,258.7]
[1745197331841,97.28031779,141.53,141.49,16.74]
[1745197332150,37.35416343,141.5,141.49,16.74]
[1745197332348,63.35416343,141.5,141.46,16.74]
[1745197332540,18.70451457,141.47,141.46,16.74]
[1745197334145,44.70451457,141.47,141.46,16.74]
[1745197335259,8.156,141.53,141.46,16.74]
[1745197335558,18.70451457,141.49,141.46,97.44]
[1745197336255,18.70451457,141.47,141.46,16.74]
[1745197336431,51.26721457,141.47,141.46,16.74]
[1745197336633,26.0,141.45,141.42,0.03]
[1745197336932,26.0,141.45,141.43,16.74]
[1745197337351,26.0,141.44,141.43,16.74]
[1745197337739,44.64964886,141.44,141.43,16.74]
[1745197337940,63.40902914,141.44,141.37,242.06]
[1745197338159,18.70451457,141.38,141.37,242.06]
[1745197339565,46.19084886,141.37,141.36,16.77]
[1745197339737,46.19084886,141.37,141.33,0.03]
[1745197339738,26.0,141.34,141.33,0.03]
[1745197339950,26.0,141.36,141.33,0.03]
[1745197340258,44.70451457,141.36,141.33,0.03]
[1745197340453,18.70451457,141.34,141.33,0.03]
[1745197340847,44.64964886,141.33,141.32,16.74]
[1745197341146,18.64964886,141.32,141.28,16.74]
[1745197341363,88.227378,141.29,141.21,80.7]
[1745197341545,18.70451457,141.22,141.18,0.03]
[1745197341740,37.35416343,141.28,141.18,0.03]
[1745197341741,18.70451457,141.21,141.18,0.03]
[1745197341960,18.70451457,141.19,141.18,0.03]
[1745197343742,18.70451457,141.2,141.18,0.03]
[1745197343933,18.70451457,141.22,141.18,0.03]
[1745197344137,18.70451457,141.22,141.18,80.73]
[1745197344561,18.70451457,141.19,141.18,80.73]
[1745197344758,18.70451457,141.19,141.18,0.03]
[1745197345269,18.70451457,141.19,141.18,16.79]
[1745197347049,32.1687,141.24,141.18,16.79]
[1745197347244,18.70451457,141.2,141.18,16.79]
[1745197347448,6.1687,141.24,141.18,35.49451457]
[1745197347647,6.1687,141.29,141.22,18.70451457]
[1745197347944,6.1687,141.33,141.23,18.70451457]
[1745197348179,18.70451457,141.31,141.25,44.70451457]
[1745197348656,6.1687,141.33,141.24,16.76]
[1745197348863,18.70451457,141.29,141.24,16.76]
[1745197349053,6.1687,141.33,141.24,16.76]
[1745197349257,18.70451457,141.27,141.24,16.76]
[1745197349651,18.70451457,141.26,141.24,16.76]
[1745197349858,24.81834886,141.33,141.24,16.76]
[1745197350068,6.1687,141.33,141.24,35.46451457]
[1745197350377,18.70451457,141.29,141.24,35.46451457]
[1745197350973,18.70451457,141.28,141.24,16.76]
[1745197351174,18.70451457,141.29,141.24,35.46451457]
[1745197351377,18.70451457,141.3,141.25,18.70451457]
[1745197351561,18.70451457,141.31,141.26,18.70451457]
[1745197351760,18.70451457,141.32,141.27,18.70451457]
[1745197352189,44.70451457,141.36,141.26,18.70451457]
[1745197352363,18.70451457,141.34,141.28,18.70451457]
[1745197353389,18.70451457,141.33,141.27,18.70451457]
[1745197353765,18.70451457,141.32,141.27,18.70451457]
[1745197353959,18.70451457,141.28,141.25,26.0]
[1745197354177,26.0,141.34,141.25,26.0]
[1745197354392,18.70451457,141.32,141.26,18.70451457]
[1745197354688,18.70451457,141.34,141.28,44.70451457]
[1745197355067,18.70451457,141.33,141.28,44.70451457]
[1745197355576,6.1687,141.37,141.28,44.70451457]
[1745197355577,18.70451457,141.34,141.29,18.70451457]
[1745197355782,27.5412,141.39,141.3,35.44451457]
[1745197355783,18.70451457,141.35,141.3,35.44451457]
[1745197356089,18.70451457,141.32,141.3,16.74]
[1745197356672,18.70451457,141.33,141.3,16.74]
[1745197357179,18.70451457,141.34,141.3,16.74]
[1745197357377,6.0828,141.39,141.32,18.70451457]
[1745197357578,18.70451457,141.37,141.32,18.70451457]
[1745197357786,18.70451457,141.36,141.31,44.70451457]
[1745197357967,18.70451457,141.36,141.31,26.0]
[1745197358870,18.70451457,141.35,141.31,26.0]
[1745197359186,0.063,141.4,141.34,18.70451457]
[1745197359377,0.063,141.4,141.37,18.70451457]
[1745197359686,0.063,141.4,141.38,16.74]
[1745197363473,0.063,141.4,141.38,35.44451457]
[1745197363688,0.063,141.4,141.39,37.35416343]
[1745197363889,0.063,141.4,141.39,118.05416343]
[1745197364073,0.063,141.48,141.43,26.0]
[1745197364384,0.063,141.48,141.45,18.70451457]
[1745197364891,0.063,141.48,141.44,277.76451457]
[1745197365271,0.063,141.48,141.47,26.0]
[1745197365480,0.063,141.48,141.47,99.40451457]
[1745197365688,0.063,141.48,141.47,80.7]
[1745197366080,0.063,141.48,141.47,99.40451457]
[1745197366590,0.063,141.48,141.47,80.7]
[1745197366886,18.76751457,141.48,141.47,80.7]
[1745197367270,0.063,141.48,141.47,80.7]
[1745197367471,18.76751457,141.48,141.44,259.06]
[1745197367678,18.70451457,141.47,141.44,259.06]
[1745197368693,18.70451457,141.46,141.44,259.06]
[1745197369192,18.70451457,141.45,141.44,259.06]
[1745197369593,18.70451457,141.46,141.44,259.06]
[1745197369891,18.70451457,141.47,141.44,259.06]
[1745197370394,18.70451457,141.46,141.44,259.06]
[1745197370703,18.70451457,141.47,141.44,259.06]
[1745197370892,0.063,141.48,141.44,259.06]
[1745197371196,0.063,141.48,141.45,18.70451457]
[1745197371392,0.063,141.48,141.44,339.76]
[1745197371393,18.70451457,141.47,141.44,339.76]
[1745197371692,18.70451457,141.45,141.44,259.06]
[1745197371896,0.063,141.48,141.44,259.06]
[1745197372406,18.70451457,141.46,141.44,259.06]
[1745197372701,18.70451457,141.45,141.44,259.06]
[1745197372881,18.70451457,141.46,141.44,259.06]
[1745197373482,0.063,141.48,141.44,259.06]
[1745197373483,18.70451457,141.47,141.44,259.06]
[1745197374300,0.063,141.48,141.44,259.06]
[1745197375097,18.76751457,141.48,141.44,259.06]
[1745197377904,0.063,141.48,141.44,358.46451457]
[1745197378111,0.063,141.48,141.45,18.70451457]
[1745197378405,18.76751457,141.48,141.44,339.76]
[1745197378586,18.70451457,141.47,141.44,339.76]
[1745197378782,0.063,141.48,141.44,339.76]
[1745197379003,18.70451457,141.47,141.44,339.76]
[1745197379311,18.76751457,141.48,141.44,339.76]
[1745197381613,0.063,141.48,141.44,339.76]
[1745197382618,0.063,141.48,141.44,358.46451457]
[1745197382804,0.063,141.48,141.44,339.76]
[1745197382996,0.063,141.48,141.47,18.70451457]
[1745197383215,0.063,141.48,141.47,99.40451457]
[1745197386012,0.063,141.48,141.47,118.05416343]
[1745197392294,0.063,141.48,141.47,80.7]
[1745197392622,18.76751457,141.48,141.44,259.06]
[1745197392818,18.70451457,141.45,141.44,259.06]
[1745197393135,18.70451457,141.47,141.44,259.06]
[1745197393414,0.063,141.48,141.44,259.06]
[1745197393716,18.70451457,141.46,141.44,259.06]
[1745197394018,18.70451457,141.47,141.44,259.06]
[1745197394321,18.76751457,141.48,141.44,259.06]
[1745197394499,18.70451457,141.47,141.44,259.06]
[1745197395210,18.70451457,141.45,141.44,259.06]
[1745197396524,18.70451457,141.46,141.44,259.06]
[1745197396741,18.70451457,141.45,141.44,259.06]
[1745197397422,18.70451457,141.45,141.44,242.32]
[1745197397607,0.063,141.48,141.44,259.02]
[1745197397812,18.70451457,141.45,141.44,16.7]
[1745197400631,0.063,141.48,141.44,16.7]
[1745197400828,0.063,141.48,141.45,18.70451457]
[1745197401333,0.063,141.48,141.43,26.0]
[1745197401512,18.70451457,141.44,141.41,26.0]
[1745197401829,0.063,141.48,141.42,16.72]
[1745197402001,18.70451457,141.43,141.42,16.72]
[1745197405410,11.71203902,141.43,141.42,16.72]
[1745197405825,11.71203902,141.43,141.35,253.79203902]
[1745197406136,11.71203902,141.41,141.36,16.72]
[1745197406432,11.71203902,141.41,141.37,16.72]
[1745197406629,11.71203902,141.4,141.37,16.72]
[1745197406838,11.71203902,141.41,141.37,16.72]
[1745197407425,6.081,141.42,141.38,16.72]
[1745197407638,11.71203902,141.42,141.38,16.72]
[1745197408013,11.71203902,141.41,141.38,16.72]
[1745197408415,18.64964886,141.45,141.38,16.72]
[1745197408736,11.71203902,141.41,141.38,16.72]
[1745197408924,11.71203902,141.4,141.38,16.72]
[1745197409227,11.71203902,141.39,141.38,16.72]
[1745197409442,18.64964886,141.45,141.38,16.72]
[1745197409662,26.35744886,141.46,141.38,109.13203902]
[1745197409845,11.71203902,141.42,141.38,97.42]
[1745197410247,11.71203902,141.43,141.38,109.13203902]
[1745197411057,11.71203902,141.43,141.38,97.42]
[1745197411260,7.7078,141.46,141.38,97.42]
[1745197411441,11.71203902,141.43,141.38,97.42]
[1745197411943,11.71203902,141.42,141.38,97.42]
[1745197412140,7.7078,141.46,141.38,16.72]
[1745197412141,11.71203902,141.39,141.38,16.72]
[1745197412866,19.41983902,141.39,141.38,16.72]
[1745197414464,44.64964886,141.38,141.34,16.73]
[1745197414762,30.36168788,141.35,141.34,0.03]
[1745197414963,30.36168788,141.35,141.3,16.7]
[1745197415265,6.2888,141.3,141.26,16.7]
[1745197415555,11.71203902,141.27,141.26,16.7]
[1745197415732,30.36168788,141.27,141.26,16.7]
[1745197415931,11.71203902,141.27,141.26,16.7]
[1745197416132,30.36168788,141.27,141.25,0.03]
[1745197416453,56.36168788,141.26,141.23,0.03]
[1745197416642,30.36168788,141.24,141.2,16.7]
[1745197416958,6.2888,141.22,141.2,16.7]
[1745197417145,11.71203902,141.21,141.2,16.7]
[1745197417343,18.64964886,141.2,141.18,0.03]
[1745197417552,18.81266589,141.19,141.18,0.03]
[1745197418256,18.81266589,141.21,141.18,0.03]
[1745197418461,18.81266589,141.23,141.18,0.03]
[1745197418763,18.81266589,141.23,141.18,18.84266589]
[1745197418962,6.2888,141.3,141.22,18.81266589]
[1745197419263,6.2888,141.35,141.26,18.81266589]
[1745197419436,6.2888,141.35,141.27,18.81266589]
[1745197419635,6.2888,141.35,141.24,18.64964886]
[1745197419838,18.81266589,141.3,141.24,18.81266589]
[1745197420462,18.81266589,141.29,141.23,277.87266589]
[1745197420664,18.81266589,141.29,141.24,18.81266589]
[1745197421755,18.81266589,141.29,141.24,44.81266589]
[1745197421963,18.81266589,141.29,141.24,26.0]
[1745197422157,18.81266589,141.3,141.24,44.81266589]
[1745197422351,6.2888,141.35,141.27,18.81266589]
[1745197422543,18.81266589,141.32,141.27,18.81266589]
[1745197422743,18.64964886,141.34,141.25,18.81266589]
[1745197422944,18.81266589,141.27,141.24,26.0]
[1745197423866,32.2888,141.35,141.26,18.81266589]
[1745197424047,18.81266589,141.33,141.27,44.81266589]
[1745197424565,18.81266589,141.32,141.27,44.81266589]
[1745197424862,6.2888,141.35,141.29,26.0]
[1745197425060,18.81266589,141.35,141.3,35.53266589]
[1745197425263,18.81266589,141.35,141.3,16.72]
[1745197425451,18.81266589,141.33,141.3,16.72]
[1745197427067,18.81266589,141.36,141.3,35.53266589]
[1745197427257,18.81266589,141.36,141.3,16.72]
[1745197427566,18.81266589,141.36,141.3,35.53266589]
[1745197427764,6.2888,141.39,141.3,35.53266589]
[1745197428148,18.81266589,141.36,141.3,35.53266589]
[1745197428770,18.81266589,141.36,141.33,26.0]
[1745197429277,18.81266589,141.36,141.31,26.0]
[1745197430068,18.81266589,141.36,141.31,44.81266589]
[1745197430472,18.81266589,141.37,141.31,44.81266589]
[1745197431260,18.81266589,141.36,141.31,44.81266589]
[1745197431777,6.2888,141.39,141.32,18.81266589]
[1745197431944,18.81266589,141.37,141.32,80.7]
[1745197432150,18.81266589,141.33,141.3,16.72]
[1745197432654,18.81266589,141.32,141.3,16.72]
[1745197432857,18.81266589,141.34,141.3,16.72]
[1745197433153,18.81266589,141.35,141.3,35.53266589]
[1745197434474,18.81266589,141.35,141.3,16.72]
[1745197434673,18.81266589,141.34,141.3,16.72]
[1745197435676,18.81266589,141.35,141.3,16.72]
[1745197435885,18.81266589,141.33,141.3,16.72]
[1745197436065,18.81266589,141.32,141.3,16.72]
[1745197436268,18.81266589,141.31,141.3,16.72]
[1745197436667,24.88866589,141.31,141.26,16.7]
[1745197436874,18.81266589,141.27,141.26,16.7]
[1745197437466,18.81266589,141.28,141.26,16.7]
[1745197437674,6.076,141.35,141.27,44.81266589]
[1745197437970,18.81266589,141.35,141.3,18.81266589]
[1745197438187,18.81266589,141.35,141.29,44.81266589]
[1745197438757,18.81266589,141.36,141.31,18.81266589]
[1745197438952,18.81266589,141.35,141.32,16.7]
[1745197439162,18.64964886,141.38,141.32,16.7]
[1745197439365,18.81266589,141.36,141.32,16.7]
[1745197440281,18.81266589,141.35,141.32,16.7]
[1745197440813,18.81266589,141.34,141.32,16.7]
[1745197441088,18.81266589,141.35,141.32,16.7]
[1745197441467,18.81266589,141.34,141.32,16.7]
[1745197441654,18.81266589,141.35,141.32,16.7]
[1745197443054,18.81266589,141.36,141.32,16.7]
[1745197443260,18.81266589,141.35,141.32,16.7]
[1745197443778,18.81266589,141.36,141.32,16.7]
[1745197444385,18.81266589,141.35,141.32,16.7]
[1745197444586,18.81266589,141.33,141.32,16.7]
[1745197445585,37.46231475,141.33,141.32,16.7]
[1745197445766,6.4954,141.31,141.28,16.7]
[1745197445974,18.64964886,141.28,141.23,259.06]
[1745197446166,18.81266589,141.24,141.23,259.06]
[1745197448984,43.95771475,141.24,141.23,16.7]
[1745197449202,18.64964886,141.23,141.19,16.7]
[1745197449402,18.81266589,141.2,141.19,16.7]
[1745197450786,6.4954,141.24,141.19,16.7]
[1745197451089,18.81266589,141.23,141.19,16.7]
[1745197451605,18.81266589,141.22,141.19,16.7]
[1745197451806,18.81266589,141.24,141.19,16.7]
[1745197452100,6.4954,141.27,141.19,116.21266589]
[1745197452294,1.5936,141.3,141.22,18.81266589]
[1745197452500,18.81266589,141.26,141.2,26.0]
[1745197452690,18.81266589,141.25,141.2,106.7]
[1745197453088,18.81266589,141.24,141.2,106.7]
[1745197453305,18.81266589,141.27,141.21,18.81266589]
[1745197453497,18.81266589,141.27,141.22,18.81266589]
[1745197454408,6.4954,141.31,141.25,18.81266589]
[1745197454595,6.4954,141.31,141.26,16.7]
[1745197454596,18.81266589,141.3,141.26,16.7]
[1745197454795,18.81266589,141.28,141.26,16.7]
[1745197455299,18.81266589,141.29,141.26,16.7]
[1745197455491,18.64964886,141.33,141.26,16.7]
[1745197455813,18.81266589,141.3,141.26,16.7]
[1745197457012,18.81266589,141.29,141.26,16.7]
[1745197458205,18.81266589,141.28,141.26,16.7]
[1745197458508,18.81266589,141.27,141.26,16.7]
[1745197460613,39.99266589,141.27,141.26,16.7]
[1745197460797,18.81266589,141.27,141.26,16.7]
[1745197462492,1.5936,141.34,141.26,116.21266589]
[1745197462814,6.4954,141.35,141.26,116.21266589]
[1745197463014,18.81266589,141.32,141.26,116.21266589]
[1745197463898,18.81266589,141.29,141.26,97.4]
[1745197464219,18.81266589,141.3,141.26,97.4]
[1745197465306,1.5433,141.38,141.29,44.81266589]
[1745197465513,18.81266589,141.36,141.3,18.81266589]
[1745197465703,1.5433,141.38,141.31,18.81266589]
[1745197465899,18.81266589,141.36,141.32,16.7]
[1745197466421,18.81266589,141.35,141.32,16.7]
[1745197467303,18.81266589,141.34,141.32,16.7]
[1745197468313,18.81266589,141.33,141.32,16.7]
[1745197471501,18.64964886,141.36,141.32,16.7]
[1745197471502,26.0,141.37,141.32,16.7]
[1745197471817,18.81266589,141.35,141.32,16.7]
[1745197472219,18.81266589,141.33,141.32,16.7]
[1745197473826,37.46231475,141.33,141.32,16.7]
[1745197474323,18.64964886,141.3,141.28,16.68]
[1745197474531,37.62533178,141.29,141.26,16.68]
[1745197474702,37.46231475,141.27,141.26,16.68]
[1745197475902,37.46231475,141.27,141.25,242.46]
[1745197476102,18.81266589,141.26,141.25,242.46]
[1745197476705,6.2107,141.31,141.25,242.46]
[1745197477331,18.81266589,141.26,141.25,242.46]
[1745197477538,18.81266589,141.27,141.25,242.46]
[1745197478106,18.81266589,141.28,141.25,242.46]
[1745197478419,18.81266589,141.27,141.25,242.46]
[1745197478823,26.0,141.33,141.25,242.46]
[1745197479031,18.81266589,141.3,141.25,242.46]
[1745197480017,18.81266589,141.3,141.26,16.68]
[1745197480850,18.81266589,141.29,141.26,16.68]
[1745197481529,18.81266589,141.3,141.26,16.68]
[1745197482016,18.64964886,141.34,141.26,16.68]
[1745197482222,18.81266589,141.3,141.26,97.38]
[1745197482422,6.2107,141.35,141.27,44.81266589]
[1745197482729,18.81266589,141.33,141.28,18.81266589]
[1745197482929,18.81266589,141.32,141.27,106.7]
[1745197483405,18.81266589,141.33,141.27,125.51266589]
[1745197483806,18.81266589,141.32,141.27,106.7]
[1745197484331,18.81266589,141.33,141.27,125.51266589]
[1745197484825,18.81266589,141.31,141.27,106.7]
[1745197485029,18.81266589,141.29,141.27,106.7]
[1745197485327,18.81266589,141.36,141.27,106.7]
[1745197485512,18.81266589,141.32,141.27,106.7]
[1745197485709,18.81266589,141.32,141.27,125.51266589]
[1745197486520,18.81266589,141.3,141.27,106.7]
[1745197487016,18.81266589,141.29,141.27,106.7]
[1745197487921,18.64964886,141.35,141.27,106.7]
[1745197488236,18.81266589,141.31,141.27,106.7]
[1745197488531,18.81266589,141.28,141.26,16.68]
[1745197488733,44.64964886,141.35,141.26,16.68]
[1745197488922,18.81266589,141.29,141.26,16.68]
[1745197489123,18.81266589,141.3,141.26,16.68]
[1745197490337,18.81266589,141.29,141.26,16.68]
[1745197490815,18.81266589,141.3,141.26,16.68]
[1745197491734,44.64964886,141.35,141.26,16.68]
[1745197492119,18.81266589,141.3,141.26,16.68]
[1745197492541,18.81266589,141.32,141.26,116.19266589]
[1745197492719,18.81266589,141.31,141.26,97.38]
[1745197493321,18.81266589,141.32,141.26,116.19266589]
[1745197494540,18.81266589,141.29,141.26,123.38]
[1745197494836,18.81266589,141.3,141.26,123.38]
[1745197495338,18.81266589,141.31,141.26,123.38]
[1745197495952,44.64964886,141.37,141.27,18.81266589]
[1745197496142,18.81266589,141.33,141.27,99.51266589]
[1745197496451,18.81266589,141.33,141.28,16.68]
[1745197496622,18.81266589,141.32,141.28,16.68]
[1745197496820,18.81266589,141.33,141.28,16.68]
[1745197497219,6.2107,141.38,141.29,26.0]
[1745197497443,18.81266589,141.34,141.29,26.0]
[1745197498659,6.2107,141.38,141.31,26.0]
[1745197498826,18.81266589,141.36,141.31,106.7]
[1745197499962,6.2107,141.38,141.33,18.81266589]
[1745197500158,18.87566589,141.39,141.34,16.66]
[1745197500371,18.81266589,141.38,141.34,16.66]
[1745197500542,0.063,141.39,141.34,16.66]
[1745197500867,0.063,141.39,141.37,44.81266589]
[1745197501259,0.063,141.39,141.38,18.81266589]
[1745197501464,0.063,141.39,141.38,99.51266589]
[1745197501966,0.063,141.39,141.38,118.16231475]
[1745197502266,0.063,141.41,141.4,18.64964886]
[1745197502431,0.063,141.41,141.4,134.73931475]
[1745197502838,0.063,141.42,141.41,37.46231475]
[1745197504154,0.063,141.42,141.41,18.64964886]
[1745197504338,0.063,141.42,141.41,37.46231475]
[1745197504672,0.063,141.42,141.41,18.64964886]
[1745197504844,0.063,141.42,141.41,37.46231475]
[1745197507071,0.063,141.42,141.4,97.277]
[1745197507371,0.063,141.42,141.41,44.81266589]
[1745197507684,0.063,141.42,141.37,8.098]
[1745197507840,18.81266589,141.39,141.38,16.64]
[1745197509663,0.063,141.42,141.38,16.64]
[1745197510057,0.063,141.42,141.41,26.0]
[1745197510262,0.063,141.42,141.41,44.81266589]
[1745197510568,0.063,141.42,141.41,125.44966589]
[1745197510941,0.063,141.42,141.41,144.09931475]
[1745197511254,0.063,141.45,141.44,44.64964886]
[1745197511461,0.063,141.45,141.44,179.55198064]
[1745197511849,0.063,141.45,141.44,160.73931475]
[1745197512774,0.063,141.45,141.44,97.277]
[1745197513066,18.87566589,141.45,141.39,18.81266589]
[1745197513242,18.81266589,141.43,141.4,16.64]
[1745197513439,0.063,141.45,141.4,16.64]
[1745197513649,18.81266589,141.42,141.4,16.64]
[1745197513850,0.063,141.45,141.4,16.64]
[1745197514054,18.81266589,141.44,141.4,16.64]
[1745197514247,0.063,141.45,141.4,35.45266589]
[1745197514452,0.063,141.45,141.41,18.81266589]
[1745197514651,0.063,141.45,141.4,35.45266589]
[1745197515173,0.063,141.45,141.43,26.0]
[1745197515550,0.063,141.45,141.44,26.0]
[1745197517268,0.063,141.45,141.41,18.81266589]
[1745197517269,0.063,141.45,141.4,16.64]
[1745197517478,27.67171226,141.43,141.42,26.0]
[1745197517656,27.67171226,141.44,141.42,26.0]
[1745197517862,27.73471226,141.45,141.42,26.0]
[1745197518972,27.67171226,141.44,141.42,26.0]
[1745197519170,27.73471226,141.45,141.42,26.0]
[1745197519370,27.67171226,141.43,141.4,16.64]
[1745197519679,0.063,141.45,141.4,16.64]
[1745197519867,27.67171226,141.42,141.4,16.64]
[1745197520052,27.67171226,141.41,141.4,16.64]
[1745197520456,0.063,141.45,141.4,16.64]
[1745197520765,27.67171226,141.42,141.4,16.64]
[1745197521783,0.063,141.45,141.4,16.64]
[1745197522581,0.063,141.45,141.43,26.0]
[1745197523076,27.73471226,141.45,141.4,97.277]
[1745197523266,27.67171226,141.44,141.41,26.0]
[1745197523777,27.73471226,141.45,141.41,26.0]
[1745197523976,0.063,141.45,141.44,53.67171226]
[1745197524159,0.063,141.45,141.44,106.637]
[1745197524360,0.063,141.45,141.44,134.30871226]
[1745197524678,0.063,141.45,141.44,106.637]
[1745197526160,0.063,141.45,141.44,80.637]
[1745197526559,27.73471226,141.45,141.36,323.047]
[1745197526759,27.67171226,141.39,141.37,16.64]
[1745197526983,27.67171226,141.4,141.37,97.277]